Cogmind - Beta 17 @@@ ROGUE MODE // 2026.08.22 @ 22:16:24 Player: Petvaria Result: Destroyed by P-80 Master with Gamma Rifle Performance ------------- Evolutions (9) 4500 Regions Visited (15) 3000 Robots Destroyed (30) 150 Value Destroyed (612) 612 Prototype IDs (25) 500 Alien Tech Used (0) 0 Bonus (807) 807 TOTAL SCORE: 9569 Bonus ------- Follower Combat Kills 7 Entered DSFs 500 Aligned with FarCom 300 Cogmind --------- Core Integrity 0/1600 Matter 275/300 Energy 80/100 System Corruption 0% Temperature Cool (0) Movement Core (50) Location -1/Access Parts ------- > --- POWER (1) -------- (None) > --- PROPULSION (2) --- (None) > --- UTILITY (20) ----- Improved Signal Interpreter Advanced Terrain Scan Processor Advanced Terrain Scan Processor Improved Targeting Computer Improved Armor Integrity Analyzer Graphene Brace Hacking Suite Advanced Corruption Screen > --- WEAPON (2) ------- (None) > --- INVENTORY (5) ---- Advanced Sensor Array Advanced Signal Interpreter Advanced Terrain Scan Processor Trap Reconfigurator Heavy Neutron Cannon Peak State ------------ > --- POWER ------------ (None) > --- PROPULSION ------- (None) > --- UTILITY ---------- Improved Signal Interpreter Advanced Terrain Scan Processor Advanced Terrain Scan Processor Advanced Terrain Scan Processor Advanced Terrain Scan Processor Improved Targeting Computer Improved Armor Integrity Analyzer Hacking Suite Improved System Shield Improved System Shield Advanced Corruption Screen > --- WEAPON ----------- Power Maul > --- INVENTORY -------- Advanced Sensor Array Advanced Signal Interpreter Trap Reconfigurator Heavy Neutron Cannon Power Maul [Rating: 56] Favorites ----------- Power None Propulsion None Utility Advanced Terrain Scan Processor Device Gravity Neutralizer Processor Advanced Terrain Scan Processor Hackware Hacking Suite Weapon Power Maul Energy Gun Small Laser Energy Cannon Heavy Neutron Cannon Ballistic Gun Assault Rifle Special Weapon Mining Laser Impact Weapon Power Maul Slashing Weapon Katana Build | -11 -10 -10 -10 -9 -8 -7 -6 -6 -6 -5 -4 -3 -3 -2 -1 ------- Run | Yrd Mat Min Exi Min Mat Fac Fac Low Low Fac Fac Res DSF Res Acc Slots Evolved 18 | . . . . . 4 2 2 . . 2 2 2 . 2 2 Power . | . . . . . . . . . . . . . . . . Propulsion . | . . . . . . . . . . . . . . . . Utility 18 | . . . . . 4 2 2 . . 2 2 2 . 2 2 Weapon . | . . . . . . . . . . . . . . . . Parts Attached 30 | . . . . 4 1 8 5 . . 2 1 . 6 . 3 Power . | . . . . . . . . . . . . . . . . Engine . | . . . . . . . . . . . . . . . . Core . | . . . . . . . . . . . . . . . . Reactor . | . . . . . . . . . . . . . . . . Propulsion . | . . . . . . . . . . . . . . . . Treads . | . . . . . . . . . . . . . . . . Leg . | . . . . . . . . . . . . . . . . Wheel . | . . . . . . . . . . . . . . . . Hover . | . . . . . . . . . . . . . . . . Flight . | . . . . . . . . . . . . . . . . Utility 20 | . . . . 2 . 6 3 . . 1 . . 5 . 3 Device 5 | . . . . 1 . . 3 . . . . . . . 1 Storage . | . . . . . . . . . . . . . . . . Processor 12 | . . . . 1 . 6 . . . . . . 3 . 2 Hackware 3 | . . . . . . . . . . 1 . . 2 . . Protection . | . . . . . . . . . . . . . . . . Artifact . | . . . . . . . . . . . . . . . . Weapon 10 | . . . . 2 1 2 2 . . 1 1 . 1 . . Energy Gun 1 | . . . . 1 . . . . . . . . . . . Energy Cannon 2 | . . . . . . . . . . . 1 . 1 . . Ballistic Gun 1 | . . . . 1 . . . . . . . . . . . Ballistic Cannon . | . . . . . . . . . . . . . . . . Launcher . | . . . . . . . . . . . . . . . . Special Weapon 1 | . . . . . 1 . . . . . . . . . . Impact Weapon 2 | . . . . . . 1 . . . 1 . . . . . Slashing Weapon 3 | . . . . . . 1 2 . . . . . . . . Piercing Weapon . | . . . . . . . . . . . . . . . . Special Melee Weapon . | . . . . . . . . . . . . . . . . Unidentified Prototypes 2 | . . . . . . . 1 . . . . . 1 . . Parts Lost 10 | . . . . . . . . 2 . 2 . . 1 . 5 Power . | . . . . . . . . . . . . . . . . Propulsion . | . . . . . . . . . . . . . . . . Utility 7 | . . . . . . . . 2 . 1 . . 1 . 3 Weapon 3 | . . . . . . . . . . 1 . . . . 2 Highest Loss Streak 2 | . . . . . . . . 1 . 2 . . 1 . 2 To Critical Strikes . | . . . . . . . . . . . . . . . . Average Backups 4 | 1 3 3 4 3 2 4 4 5 5 4 4 5 5 5 4 Power . | . 1 1 1 1 1 . . . . . . . . . . Propulsion . | . . . . . . . . . . . . . . . . Utility 2 | . . . 1 1 1 2 2 2 2 1 2 3 3 3 3 Weapon 1 | 1 2 2 2 1 . 1 2 3 3 2 1 2 2 2 1 Tool/Special . | . . . . . . . . . . . . . . . . Unused Backups 7 | . . . . . . 2 1 . . . . . . . 4 Power 1 | . . . . . . 1 . . . . . . . . . Propulsion . | . . . . . . . . . . . . . . . . Utility 6 | . . . . . . 1 1 . . . . . . . 4 Weapon . | . . . . . . . . . . . . . . . . Tool/Special . | . . . . . . . . . . . . . . . . Average Slot Usage (%) 30 | . . . . 14 27 45 41 40 33 30 31 28 36 43 38 Device 3 | . . . . . 9 . 8 8 6 6 5 4 3 . 1 Processor 19 | . . . . 4 9 37 26 25 20 17 15 14 16 26 28 Hackware 1 | . . . . . . . . . . . 5 4 10 13 5 Ballistic Gun 1 | . . . . 5 9 . . . . . . . . . . Impact Weapon 2 | . . . . . . 6 3 . . 1 5 4 4 4 2 Peak Build Rating 56 | . . . 1 7 7 22 27 25 20 23 28 25 42 48 56 Average Rating 20 | . . . . 2 6 18 23 22 20 20 23 25 34 41 44 On Entrance 15 | . . . . 1 6 6 20 25 20 20 23 25 25 41 41 Avg Prop Armor Cover (%) . | . . . . . . . . . . . . . . . . Naked Turns 720 | . 68 269 115 268 . . . . . . . . . . . Heaviest Build 5 | . . . . 4 3 5 3 3 2 3 3 3 3 3 3 Greatest Support 3 | 3 3 3 3 3 3 3 3 3 3 3 3 3 3 3 3 Greatest Overweight (x) 1 | . . . . 1 . 1 . . . . . . . . . Average Overweight (x) . | . . . . . . . . . . . . . . . . Largest Inventory Capacity 5 | 5 5 5 5 5 5 5 5 5 5 5 5 5 5 5 5 Average Capacity 5 | 5 5 5 5 5 5 5 5 5 5 5 5 5 5 5 5 Most Carried 5 | 3 3 4 5 5 5 5 5 5 5 5 5 5 5 5 5 Average Carried 4 | 1 3 3 4 4 4 4 4 5 5 4 4 5 4 4 4 Final Capacity 5 | 5 5 5 5 5 5 5 5 5 5 5 5 5 5 5 5 Final Carried 5 | 3 3 4 5 5 5 5 5 5 5 3 5 5 5 5 5 Class Distribution -------------------- 79% | Mutant 11% | Scout 8% | Hacker-Mutant Dominant Class ---------------- Mutant | -10/Materials Mutant | -10/Mines Mutant | -10/Exiles Mutant | -9/Mines Scout | -8/Materials Mutant | -7/Factory Mutant | -6/Factory Mutant | -6/Lower Caves Mutant | -6/Lower Caves Mutant | -5/Factory Mutant | -4/Factory Mutant | -3/Research Hacker-Mutant | -3/DSF Hacker-Mutant | -2/Research Mutant | -1/Access Resources | -11 -10 -10 -10 -9 -8 -7 -6 -6 -6 -5 -4 -3 -3 -2 -1 ----------- Run | Yrd Mat Min Exi Min Mat Fac Fac Low Low Fac Fac Res DSF Res Acc Matter Collected 609 | 200 . . . 55 22 57 86 34 . 13 . . 5 . 137 Remotely . | . . . . . . . . . . . . . . . . Salvage Created 1095 | . . . . 61 52 115 123 . . 170 . . . . 574 Parts 38 | . . . . 10 4 5 4 . . 4 . . . . 11 Haulers Intercepted 2 | . . . . . . 2 . . . . . . . . . Recyclers Shooed 1 | . . . . . . 1 . . . . . . . . . Parts Field Recycled . | . . . . . . . . . . . . . . . . Retrieved Matter . | . . . . . . . . . . . . . . . . Parts Self-Destructed . | . . . . . . . . . . . . . . . . Prevented . | . . . . . . . . . . . . . . . . Parts Restored . | . . . . . . . . . . . . . . . . Kills | -11 -10 -10 -10 -9 -8 -7 -6 -6 -6 -5 -4 -3 -3 -2 -1 ------- Run | Yrd Mat Min Exi Min Mat Fac Fac Low Low Fac Fac Res DSF Res Acc Combat Hostiles Destroyed 9 | . . . . 4 1 . 1 . . 1 . . . . 2 Melee 4 | . . . . . . . 1 . . 1 . . . . 2 Guns 5 | . . . . 4 1 . . . . . . . . . . Classes Destroyed 9 | . . . . 1 1 2 4 . . 1 . . . . . Worker 8 | . . . . . . . 3 . . 1 . . . . 4 Tunneler 1 | . . . . . . . 1 . . . . . . . . Hauler 2 | . . . . . . 2 . . . . . . . . . Recycler 3 | . . . . . . . . . . 1 . . . . 2 Operator 5 | . . . . . . 1 1 . . 1 . . . . 2 Watcher 2 | . . . . . . . 1 . . . . . . . 1 Swarmer 5 | . . . . 4 . . . . . 1 . . . . . Sentry 1 | . . . . . 1 . . . . . . . . . . Programmer 3 | . . . . . . . 1 . . . . . . . 2 Best Kill Streak 4 | . . . . 4 1 2 3 . . 3 . . . . 2 Combat Bots Only 4 | . . . . 4 1 . 1 . . 1 . . . . 1 Max Kills in Single Turn 2 | . . . . 2 1 1 1 . . 1 . . . . 1 Gunslinging 1 | . . . . 1 . . . . . . . . . . . Exploded . | . . . . . . . . . . . . . . . . Melee 1 | . . . . . . . 1 . . 1 . . . . 1 Uniques/NPCs Destroyed . | . . . . . . . . . . . . . . . . Combat | -11 -10 -10 -10 -9 -8 -7 -6 -6 -6 -5 -4 -3 -3 -2 -1 -------- Run | Yrd Mat Min Exi Min Mat Fac Fac Low Low Fac Fac Res DSF Res Acc Hostile Shots Fired 319 | . . . . 16 4 26 24 32 . 20 2 . 56 . 139 Missed 135 | . . . . 3 1 12 11 14 . 9 . . 25 . 60 Hits 184 | . . . . 13 3 14 13 18 . 11 2 . 31 . 79 Melee 1 | . . . . . . 1 . . . . . . . . . Projectile 183 | . . . . 13 3 13 13 18 . 11 2 . 31 . 79 AOE 4 | . . 2 . . . . 1 . . . . . . . 1 Critical Strikes 8 | . . 1 . . 2 1 1 . . . . . . . 3 Part Disruptions 1 | . . . . . . . . 1 . . . . . . . Damage Taken 3654 | . . 115 . 101 45 190 154 304 . 305 40 . 372 . 2028 Core 2866 | . . 115 . 52 17 160 90 225 . 255 40 . 297 . 1615 Absorbed by Shields . | . . . . . . . . . . . . . . . . Core Remaining (%) 79 | 100 . . . 33 96 77 . . 62 74 96 . 77 100 . Volleys Fired 18 | . . . . 5 6 . . . . . 3 . . 1 3 Largest 2 | . . . . 2 1 . . . . . 1 . . 1 1 Hottest 110 | . . . . 60 20 . . . . . 80 . . 110 110 Shots Fired 23 | . . . . 10 6 . . . . . 3 . . 1 3 Gun 16 | . . . . 10 6 . . . . . . . . . . Cannon 7 | . . . . . . . . . . . 3 . . 1 3 Launcher . | . . . . . . . . . . . . . . . . Special . | . . . . . . . . . . . . . . . . Kinetic 11 | . . . . 5 6 . . . . . . . . . . Thermal 12 | . . . . 5 . . . . . . 3 . . 1 3 Explosive . | . . . . . . . . . . . . . . . . Electromagnetic . | . . . . . . . . . . . . . . . . Robot Hit Streak 5 | . . . . 3 5 . . . . . . . . . . Robot Miss Streak 1 | . . . . 1 1 . . . . . . . . . 1 Penetration Max . | . . . . . . . . . . . . . . . . Secondary Targets 1 | . . . . 1 . . . . . . . . . . . Max Gunslinging Chain 1 | . . . . 1 . . . . . . . . . . . Shots Hit Robots 48 | . . . . 6 4 5 11 . . 4 . . . . 18 Core Hits 12 | . . . . 4 2 1 1 . . 1 . . . . 3 Critical Kills 3 | . . . . . . . . . . . . . . . 3 Critical Parts Destroyed 7 | . . . . . . . 3 . . 1 . . . . 3 Critical Strikes 10 | . . . . . . . 3 . . 1 . . . . 6 Smash 10 | . . . . . . . 3 . . 1 . . . . 6 Melee Attacks 106 | . . . . . . 20 23 . . 15 6 . . 3 39 Impact 91 | . . . . . . 20 17 . . 6 6 . . 3 39 Slashing 15 | . . . . . . . 6 . . 9 . . . . . Piercing . | . . . . . . . . . . . . . . . . Sneak Attacks 16 | . . . . . . 2 5 . . 2 . . . . 7 Combat Hostiles . | . . . . . . . . . . . . . . . . Follow-up Attacks . | . . . . . . . . . . . . . . . . Damage Inflicted 2710 | . . . . 74 65 357 749 . . 241 . . . . 1224 Guns 139 | . . . . 74 65 . . . . . . . . . . Cannons . | . . . . . . . . . . . . . . . . Explosions . | . . . . . . . . . . . . . . . . Melee 2538 | . . . . . . 357 749 . . 240 . . . . 1192 Ramming 33 | . . . . . . . . . . 1 . . . . 32 Kinetic 118 | . . . . 53 65 . . . . . . . . . . Thermal 21 | . . . . 21 . . . . . . . . . . . Explosive . | . . . . . . . . . . . . . . . . Electromagnetic . | . . . . . . . . . . . . . . . . Impact 2274 | . . . . . . 357 678 . . 47 . . . . 1192 Slashing 264 | . . . . . . . 71 . . 193 . . . . . Piercing . | . . . . . . . . . . . . . . . . Highest Corruption 3 | . . . . . 1 . 2 3 3 . . . . . . Average Corruption 2 | . . . . . 1 . 1 2 3 . . . . . . Corruption Purged . | . . . . . . . . . . . . . . . . Corruption Blocked 7 | . . . . . . . . . . . . . . . 7 Effects 6 | . . . . . . . 3 3 . . . . . . . Matter Fused 1 | . . . . . . . . 1 . . . . . . . Energy Discharges 3 | . . . . . . . 2 1 . . . . . . . Parts Fused 1 | . . . . . . . . 1 . . . . . . . Data Loss (minor) 1 | . . . . . . . 1 . . . . . . . . Overload Shots . | . . . . . . . . . . . . . . . . Overflow Damage 1156 | . . . . . . 85 394 . . 118 . . . . 559 Projectiles . | . . . . . . . . . . . . . . . . Explosions . | . . . . . . . . . . . . . . . . Melee 1156 | . . . . . . 85 394 . . 118 . . . . 559 Knockbacks 7 | . . . . . . 1 3 . . . . . . . 3 Impact 7 | . . . . . . 1 3 . . . . . . . 3 Kinetic . | . . . . . . . . . . . . . . . . Secondary . | . . . . . . . . . . . . . . . . Self-Inflicted Damage 15 | . . . . . . . . . . . . . . . 15 Shots . | . . . . . . . . . . . . . . . . Rammed 4 | . . . . . . . . . . 1 . . . . 3 Targets Rammed 4 | . . . . . . . . . . 1 . . . . 3 Kicked . | . . . . . . . . . . . . . . . . Crushed . | . . . . . . . . . . . . . . . . Highest Temperature 15 | . . . . 15 6 . . . . . . . . 12 6 Average Temperature 6 | . . . . 10 6 . . . . . . . . 9 4 Received Heat Transfer 375 | . . . . . 54 57 18 36 . 72 21 . 72 . 45 Siege Activations . | . . . . . . . . . . . . . . . . Martial Activations . | . . . . . . . . . . . . . . . . Shielding Activations . | . . . . . . . . . . . . . . . . Robots Disrupted . | . . . . . . . . . . . . . . . . Combat Hostiles . | . . . . . . . . . . . . . . . . Robots Corrupted 9 | . . . . . . 2 2 . . . . . . . 5 Combat Hostiles . | . . . . . . . . . . . . . . . . Parts Fried 18 | . . . . . . 2 4 . . . . . . . 12 Impact Corruptions 41 | . . . . . . 3 15 . . 2 . . . . 21 Robots Melted . | . . . . . . . . . . . . . . . . Combat Hostiles . | . . . . . . . . . . . . . . . . Parts Melted 1 | . . . . . . . . . . . . . . . 1 Heat Transferred 50 | . . . . 50 . . . . . . . . . . . Parts Sabotaged . | . . . . . . . . . . . . . . . . Parts Stolen . | . . . . . . . . . . . . . . . . Parts Stripped . | . . . . . . . . . . . . . . . . Power Chain Reactions . | . . . . . . . . . . . . . . . . Alert | -11 -10 -10 -10 -9 -8 -7 -6 -6 -6 -5 -4 -3 -3 -2 -1 ------- Run | Yrd Mat Min Exi Min Mat Fac Fac Low Low Fac Fac Res DSF Res Acc Maximum Alert Level 1 | . . . . . . . . . . . . . . . 1 Low Security (%) 99 | 100 100 100 . 100 100 100 100 . . 100 100 100 100 100 99 Level 1 . | . . . . . . . . . . . . . . . . Level 2 . | . . . . . . . . . . . . . . . . Level 3 . | . . . . . . . . . . . . . . . . Level 4 . | . . . . . . . . . . . . . . . . Level 5 . | . . . . . . . . . . . . . . . . High Security . | . . . . . . . . . . . . . . . . Max Security . | . . . . . . . . . . . . . . . . Peak Influence 202 | . . 15 . 90 30 54 96 . . 88 53 17 20 11 202 Initial 42 | . . . . . 9 . 22 . . 25 42 17 15 11 3 Average 28 | . . 2 . 29 5 5 53 . . 33 40 17 13 6 51 Influence Increases 1385 | . . 30 . 165 30 122 187 120 . 187 41 4 15 12 472 Destroy 0b10 Robot/C 240 | . . . . 140 20 . 20 . . 20 . . . . 40 Destroy 0b10 Robot/NC 105 | . . . . . . 15 30 . . 15 . . . . 45 Destroy Leader 58 | . . . . 20 10 4 12 . . . . . . . 12 Allied During Kill 5 | . . . . 5 . . . . . . . . . . . Successful Hack 58 | . . . . . . 14 . . . 12 16 4 . . 12 Disable Machine 75 | . . . . . . 15 15 . . . 15 . . . 30 Destroy Structure 139 | . . . . . . 14 5 . . 20 10 . . 12 78 Partial Spotted 15 | . . . . . . . . . . . . . . . 15 Lose Combat Pursuer 690 | . . 30 . . . 60 105 120 . 120 . . 15 . 240 Influence Decreases 1196 | . . 30 . 141 54 75 223 81 10 139 96 16 16 26 289 Entered New Map 150 | . . . . . 15 . 25 5 10 15 46 16 6 9 3 Time Decay 936 | . . 30 . 116 39 75 198 56 . 104 50 . . 17 251 Lost Part 85 | . . . . . . . . 20 . 20 . . 10 . 35 Lost Ally 25 | . . . . 25 . . . . . . . . . . . Squads Dispatched 17 | . . . . . 1 4 4 . . 2 1 . . . 5 Investigation 3 | . . . . . . 1 . . . 1 1 . . . . Extermination 7 | . . . . . . 2 2 . . . . . . . 3 Reinforcement 7 | . . . . . 1 1 2 . . 1 . . . . 2 Assault . | . . . . . . . . . . . . . . . . Garrison . | . . . . . . . . . . . . . . . . Intercept . | . . . . . . . . . . . . . . . . Searches Triggered . | . . . . . . . . . . . . . . . . Construction Impeded . | . . . . . . . . . . . . . . . . Haulers Reinforced . | . . . . . . . . . . . . . . . . Active Scanning Responses . | . . . . . . . . . . . . . . . . Cargo Convoy Interrupts . | . . . . . . . . . . . . . . . . Stealth | -11 -10 -10 -10 -9 -8 -7 -6 -6 -6 -5 -4 -3 -3 -2 -1 --------- Run | Yrd Mat Min Exi Min Mat Fac Fac Low Low Fac Fac Res DSF Res Acc Distress Signals 3 | . . . . . 2 . . . . . . . . . 1 Communications Jammed . | . . . . . . . . . . . . . . . . Distress Signals . | . . . . . . . . . . . . . . . . Times Spotted 112 | . 1 5 . 7 4 11 13 14 . 19 3 . 4 . 31 Peak Tracking Total 12 | . 1 2 . 3 3 5 6 9 . 5 3 . 5 . 12 Tactical Retreats 22 | . . 2 . . . 2 3 4 . 4 . . 1 . 6 Traps | -11 -10 -10 -10 -9 -8 -7 -6 -6 -6 -5 -4 -3 -3 -2 -1 ------- Run | Yrd Mat Min Exi Min Mat Fac Fac Low Low Fac Fac Res DSF Res Acc Traps Triggered 6 | . . . . . 1 2 . . . 1 . . 1 . 1 Indirectly . | . . . . . . . . . . . . . . . . Trap Hack Attempts . | . . . . . . . . . . . . . . . . Triggered . | . . . . . . . . . . . . . . . . Disarmed . | . . . . . . . . . . . . . . . . Reprogrammed . | . . . . . . . . . . . . . . . . Reused . | . . . . . . . . . . . . . . . . Traps Extracted . | . . . . . . . . . . . . . . . . Installed . | . . . . . . . . . . . . . . . . Triggered . | . . . . . . . . . . . . . . . . Most Traps Carried 3 | . . . . 3 3 2 . . . . . . . . . Machines | -11 -10 -10 -10 -9 -8 -7 -6 -6 -6 -5 -4 -3 -3 -2 -1 ---------- Run | Yrd Mat Min Exi Min Mat Fac Fac Low Low Fac Fac Res DSF Res Acc Machines Disabled 5 | . . . . . . 1 1 . . . 1 . . . 2 Max in Single Turn 1 | . . . . . . 1 1 . . . 1 . . . 1 Energy Cycler 1 | . . . . . . . . . . . . . . . 1 Machines Repaired . | . . . . . . . . . . . . . . . . Machines Dismantled . | . . . . . . . . . . . . . . . . Machines Sabotaged . | . . . . . . . . . . . . . . . . Overloaded Fab Kills . | . . . . . . . . . . . . . . . . Hacking | -11 -10 -10 -10 -9 -8 -7 -6 -6 -6 -5 -4 -3 -3 -2 -1 --------- Run | Yrd Mat Min Exi Min Mat Fac Fac Low Low Fac Fac Res DSF Res Acc Machines Accessed 17 | . . 1 2 . . 6 1 . . 2 2 1 . 1 1 Terminals 10 | . . . . . . 4 1 . . 1 1 1 . 1 1 Fabricators 3 | . . . . . . 1 . . . 1 1 . . . . Repair Stations . | . . . . . . . . . . . . . . . . Recycling Units . | . . . . . . . . . . . . . . . . Scanalyzers . | . . . . . . . . . . . . . . . . Garrison Access 1 | . . . . . . 1 . . . . . . . . . Total Hacks 28 | . . 1 2 . . 12 1 . . 5 3 1 . 1 2 Successful 11 | . . 1 2 . . 2 . . . 2 1 1 . 1 1 Failed 17 | . . . . . . 10 1 . . 3 2 . . . 1 Catastrophic 6 | . . . . . . 3 1 . . 2 . . . . . Database Lockouts . | . . . . . . . . . . . . . . . . Manual 18 | . . . 1 . . 8 . . . 4 2 . . 1 2 Terminals 17 | . . . . . . 8 1 . . 3 1 1 . 1 2 Fabricators 6 | . . . . . . 2 . . . 2 2 . . . . Repair Stations . | . . . . . . . . . . . . . . . . Recycling Units . | . . . . . . . . . . . . . . . . Scanalyzers . | . . . . . . . . . . . . . . . . Garrison Access 2 | . . . . . . 2 . . . . . . . . . Terminal Hacks 9 | . . 1 2 . . 1 . . . 2 1 1 . 1 . Record 1 | . . . 1 . . . . . . . . . . . . Open Door 1 | . . 1 . . . . . . . . . . . . . Open DSF 1 | . . . . . . . . . . . . 1 . . . Level Access Points 4 | . . . . . . 1 . . . 1 1 . . 1 . Zone Layout 1 | . . . . . . . . . . 1 . . . . . Proto ID Catalog 1 | . . . 1 . . . . . . . . . . . . Fabricator Hacks . | . . . . . . . . . . . . . . . . Repair Station Hacks . | . . . . . . . . . . . . . . . . Recycling Unit Hacks . | . . . . . . . . . . . . . . . . Scanalyzer . | . . . . . . . . . . . . . . . . Garrison Access Hacks . | . . . . . . . . . . . . . . . . Unauthorized Hacks 2 | . . . . . . 1 . . . . . . . . 1 Terminals 1 | . . . . . . . . . . . . . . . 1 Botnet 1 | . . . . . . . . . . . . . . . 1 Fabricators 1 | . . . . . . 1 . . . . . . . . . Haulers 1 | . . . . . . 1 . . . . . . . . . Repair Stations . | . . . . . . . . . . . . . . . . Recycling Units . | . . . . . . . . . . . . . . . . Scanalyzers . | . . . . . . . . . . . . . . . . Garrison Access . | . . . . . . . . . . . . . . . . Data Cores Recovered 1 | . . . . . . 1 . . . . . . . . . Used 1 | . . . . . . 1 . . . . . . . . . Hacking Detections 11 | . . . . . . 6 1 . . 2 1 . . . 1 Full Trace Events 3 | . . . . . . 1 . . . 1 1 . . . . Feedback Events . | . . . . . . . . . . . . . . . . Feedback Blocked . | . . . . . . . . . . . . . . . . Robot Schematics Acquired . | . . . . . . . . . . . . . . . . Robots Built . | . . . . . . . . . . . . . . . . Authchips . | . . . . . . . . . . . . . . . . Time . | . . . . . . . . . . . . . . . . Total Robot Build Rating . | . . . . . . . . . . . . . . . . Part Schematics Acquired . | . . . . . . . . . . . . . . . . Parts Built . | . . . . . . . . . . . . . . . . Authchips . | . . . . . . . . . . . . . . . . Time . | . . . . . . . . . . . . . . . . Total Part Build Rating . | . . . . . . . . . . . . . . . . Part Studies Acquired . | . . . . . . . . . . . . . . . . Parts Repaired . | . . . . . . . . . . . . . . . . Time . | . . . . . . . . . . . . . . . . Parts Recycled . | . . . . . . . . . . . . . . . . Recycled Matter . | . . . . . . . . . . . . . . . . Retrieved Matter . | . . . . . . . . . . . . . . . . Retrieved Components . | . . . . . . . . . . . . . . . . Parts Scanalyzed . | . . . . . . . . . . . . . . . . Part Schematics Acquired . | . . . . . . . . . . . . . . . . Parts Damaged . | . . . . . . . . . . . . . . . . Bothacking | -11 -10 -10 -10 -9 -8 -7 -6 -6 -6 -5 -4 -3 -3 -2 -1 ------------ Run | Yrd Mat Min Exi Min Mat Fac Fac Low Low Fac Fac Res DSF Res Acc Used RIF Installer . | . . . . . . . . . . . . . . . . Robots Hacked . | . . . . . . . . . . . . . . . . Non-combat . | . . . . . . . . . . . . . . . . Combat . | . . . . . . . . . . . . . . . . Robot Hacks Applied . | . . . . . . . . . . . . . . . . Relay Couplers Released . | . . . . . . . . . . . . . . . . Fabnet Peak Effective % . | . . . . . . . . . . . . . . . . Robots Rewired . | . . . . . . . . . . . . . . . . Allies Hacked . | . . . . . . . . . . . . . . . . Hacks Repelled . | . . . . . . . . . . . . . . . . Allies | -11 -10 -10 -10 -9 -8 -7 -6 -6 -6 -5 -4 -3 -3 -2 -1 -------- Run | Yrd Mat Min Exi Min Mat Fac Fac Low Low Fac Fac Res DSF Res Acc Total Allies 3 | . . . . 3 . . . . . . . . . . . Largest Group 3 | . . . . 3 . . . . . . . . . . . Highest-Rated Group 40 | . . . . 40 . . . . . . . . . . . Highest-Rated Ally 16 | . . . . 16 . . . . . . . . . . . Total Orders . | . . . . . . . . . . . . . . . . Ally Attacks 16 | . . . . 16 . . . . . . . . . . . Total Damage 128 | . . . . 128 . . . . . . . . . . . Kills 3 | . . . . 3 . . . . . . . . . . . Allies Corrupted . | . . . . . . . . . . . . . . . . Allies Melted . | . . . . . . . . . . . . . . . . Intel | -11 -10 -10 -10 -9 -8 -7 -6 -6 -6 -5 -4 -3 -3 -2 -1 ------- Run | Yrd Mat Min Exi Min Mat Fac Fac Low Low Fac Fac Res DSF Res Acc Active Infowar (turns) 633 | . . . . 129 187 65 169 29 . 54 . . . . . Optics 361 | . . . . 129 187 45 . . . . . . . . . Sensors 41 | . . . . . . . 12 29 . . . . . . . Terrain 211 | . . . . . . . 157 . . 54 . . . . . Structural 258 | . . . . 7 187 64 . . . . . . . . . Robot Analysis Total . | . . . . . . . . . . . . . . . . Derelict Logs Recovered 2 | . . 1 . 1 . . . . . . . . . . . Drone Launches . | . . . . . . . . . . . . . . . . Drone Recoveries . | . . . . . . . . . . . . . . . . Exploration | -11 -10 -10 -10 -9 -8 -7 -6 -6 -6 -5 -4 -3 -3 -2 -1 ------------- Run | Yrd Mat Min Exi Min Mat Fac Fac Low Low Fac Fac Res DSF Res Acc Turns Passed 3311 | 22 68 269 115 437 187 536 409 129 18 238 117 1 51 58 656 Spaces Moved 4738 | 39 126 194 228 482 247 851 616 234 36 381 155 2 83 90 974 Core 4738 | 39 126 194 228 482 247 851 616 234 36 381 155 2 83 90 974 Treads . | . . . . . . . . . . . . . . . . Legs . | . . . . . . . . . . . . . . . . Wheels . | . . . . . . . . . . . . . . . . Hover . | . . . . . . . . . . . . . . . . Flight . | . . . . . . . . . . . . . . . . Fastest Speed 50 | 50 50 50 50 50 50 50 50 50 50 50 50 50 50 50 50 Average Speed 50 | 50 50 50 50 50 50 50 50 50 50 50 50 50 50 50 50 Slowest Speed 100 | 50 50 50 50 100 50 100 50 50 50 50 50 50 50 50 50 Overloaded Moves . | . . . . . . . . . . . . . . . . Propulsion Burnouts . | . . . . . . . . . . . . . . . . Robots Hopped . | . . . . . . . . . . . . . . . . Potential Cave-ins 2 | . . . . . . . . . . . 2 . . . . Cave-ins Triggered . | . . . . . . . . . . . . . . . . Exploration Rate (%) 32 | 3 32 40 60 85 23 28 19 56 7 15 6 . 78 4 30 Regions Visited 15 Branch Regions 5 Pre-discovered Areas 4 | . . 1 1 2 . . . . . . . . . . . Known Exits Taken 8 | . . . . . . 1 1 1 1 1 1 1 . 1 . Unknown Exits Taken 6 | 1 1 1 1 1 1 . . . . . . . . . . Scrap Searched 5 | . . . . 2 . . . 3 . . . . . . . Spaces Dug 56 | . . . . . . 14 6 . . 10 6 . . 4 16 Terrain Destroyed 67 | . . . . . . 14 6 . . 10 7 . . 4 26 Melee 53 | . . . . . . 14 6 . . 10 5 . . 3 15 Projectile 5 | . . . . . . . . . . . 2 . . 1 2 AOE 9 | . . . . . . . . . . . . . . . 9 Terrain Rammed . | . . . . . . . . . . . . . . . . Walls Destroyed . | . . . . . . . . . . . . . . . . Machines Disabled . | . . . . . . . . . . . . . . . . Actions | -11 -10 -10 -10 -9 -8 -7 -6 -6 -6 -5 -4 -3 -3 -2 -1 --------- Run | Yrd Mat Min Exi Min Mat Fac Fac Low Low Fac Fac Res DSF Res Acc Total 5432 | 41 130 365 228 665 304 917 675 245 35 402 179 1 89 95 1061 Wait 488 | . 5 171 . 169 49 24 17 12 . 2 9 . . . 30 Move 4724 | 38 125 193 227 481 246 850 615 233 35 381 154 1 82 89 974 Hop . | . . . . . . . . . . . . . . . . Pick Up 21 | 3 . 1 1 3 . 4 3 . . 1 4 . . . 1 Fast Attach 29 | . . . . 1 1 12 6 . . . . . 5 . 4 Attach 15 | . . . . 4 . . 1 . . 3 1 . 1 1 4 Detach 9 | . . . . 1 1 . 2 . . . . . 1 1 3 Swap . | . . . . . . . . . . . . . . . . Drop 19 | . . . . 1 1 7 8 . . . 2 . . . . Fire 18 | . . . . 5 6 . . . . . 3 . . 1 3 Melee 106 | . . . . . . 20 23 . . 15 6 . . 3 39 Ram 3 | . . . . . . . . . . . . . . . 3 Kick . | . . . . . . . . . . . . . . . . Crush . | . . . . . . . . . . . . . . . . Escape Stasis . | . . . . . . . . . . . . . . . . Rewire . | . . . . . . . . . . . . . . . . Trap . | . . . . . . . . . . . . . . . . Miscellaneous . | . . . . . . . . . . . . . . . . Route ------- -11/Scrapyard -10/Materials (discovered 2 exits: [*Mat] / *Min) -10/Mines -10/Exiles -9/Mines -8/Materials -7/Factory (discovered 4 exits: *Fac x4) -6/Factory -6/Lower Caves -6/Lower Caves -5/Factory (discovered 4 exits: *Fac x4) -4/Factory (discovered 4 exits: *Res x4) -3/Research -3/DSF -2/Research (discovered 3 exits: *Acc x3) -1/Access History --------- Turn | Location | Event 4 | -11/Scrapyard | Discovered new exit (range 16) 23 | -11/Scrapyard | Entered Materials 71 | -10/Materials | Discovered new exit (range 3) 79 | -10/Materials | Met 8R-AWN 81 | -10/Materials | Discovered new exit (range 12) 91 | -10/Materials | Entered Mines 92 | -10/Mines | Followed 8R-AWN into the Mines 98 | -10/Mines | Learned location of Recycling (-9) 115 | -10/Mines | Assembled infested the area 233 | -10/Mines | Met a Derelict who couldn't figure out how to use a Trap Extractor 309 | -10/Mines | Build established: Mutant 355 | -10/Mines | Discovered new exit (range 5) 360 | -10/Mines | Entered Exiles 372 | -10/Exiles | Welcomed by 8R-AWN 381 | -10/Exiles | Met EX-HEX 398 | -10/Exiles | Met EX-BIN 404 | -10/Exiles | Aligned with FarCom system 404 | -10/Exiles | Given EX-Vault access code 416 | -10/Exiles | Opened EX-Vault 419 | -10/Exiles | Found Trap Reconfigurator 430 | -10/Exiles | Warned to stay clear of 0b10 Research branches 445 | -10/Exiles | Met EX-DEC 455 | -10/Exiles | Learned location of Zion (-7) 469 | -10/Exiles | Discovered new exit (range 15) 475 | -10/Exiles | Left Exiles lab with Trap Reconfigurator 475 | -10/Exiles | Entered Mines 478 | -9/Mines | Assisted by bots powering up and referring to "LRC-V3" 561 | -9/Mines | A weapon hastily lodged in a ceiling crevice suddenly fell to the ground 622 | -9/Mines | Learned location of Storage (-9) 755 | -9/Mines | Core integrity fell below 50% 780 | -9/Mines | Found a hidden stash of uninstalled traps 904 | -9/Mines | Discovered new exit (range 7) 912 | -9/Mines | Entered Materials 912 | -8/Materials | Evolved 4 slots: Utility x4 1096 | -8/Materials | Discovered new exit (range 5) 1099 | -8/Materials | Entered Factory 1099 | -7/Factory | Evolved 2 slots: Utility x2 1326 | -7/Factory | Identified exit to Factory 1635 | -7/Factory | Entered another Factory area 1635 | -6/Factory | Evolved 2 slots: Utility x2 1927 | -6/Factory | Discovered new exit (range 16) 1955 | -6/Factory | Identified exit to Lower Caves 2044 | -6/Factory | Entered Lower Caves 2045 | -6/Lower Caves | Encountered a Warlord checkpoint 2153 | -6/Lower Caves | Attracted the attention of an 0b10 outpost 2167 | -6/Lower Caves | Discovered new exit (range 12) 2173 | -6/Lower Caves | Identified exit to Lower Caves 2173 | -6/Lower Caves | Entered another Lower Caves area 2188 | -6/Lower Caves | Discovered new exit (range 6) 2191 | -6/Lower Caves | Identified exit to Factory 2191 | -6/Lower Caves | Entered Factory 2191 | -5/Factory | Evolved 2 slots: Utility x2 2426 | -5/Factory | Discovered new exit (range 6) 2426 | -5/Factory | Identified exit to Factory 2429 | -5/Factory | Entered another Factory area 2429 | -4/Factory | Evolved 2 slots: Utility x2 2474 | -4/Factory | Identified exit to Research 2546 | -4/Factory | Entered Research 2546 | -3/Research | Evolved 2 slots: Utility x2 2547 | -3/Research | Identified exit to DSF 2547 | -3/Research | Entered DSF 2576 | -3/DSF | Additional patrols routed to DSF 2591 | -3/DSF | Discovered new exit (range 16) 2597 | -3/DSF | Identified exit to Research 2598 | -3/DSF | Entered Research 2598 | -2/Research | Evolved 2 slots: Utility x2 2613 | -2/Research | Identified exit to Access 2656 | -2/Research | Entered Access 2656 | -1/Access | Evolved 2 slots: Utility x2 3138 | -1/Access | Core integrity fell below 50% 3197 | -1/Access | Energy Cycler disabled 3306 | -1/Access | Core integrity fell below 20% 3312 | -1/Access | Destroyed by P-80 Master with Gamma Rifle Last Messages --------------- Drone sends a signal. Acquired Graphene Brace. ALERT: Power surge detected, dispatching additional patrols. Energy Cycler explodes. U-05 Engineer lays Concrete. Adv. Corruption Screen intercepted 1% system corruption. Slammed into S-43 Plague. Destabilizing: Core damaged (-48). Penetrated by Slug. Slug penetrates S-43 Plague. Slammed into S-43 Plague. Destabilizing: System interference. Adv. Terrain Scan Processor temporarily disabled. Slug penetrates Wall. Slammed into P-80 Master. Adv. Corruption Screen intercepted 1% system corruption. Map ----- +----------------------------------------------------+ | | | | | | | | | | | | | | | | | | | | | | | | | ????????????????????????##??###########??????????? | | ????????????????????????# """"""" #??????????? | | ????????????????????????# """Y""" #??????????? | | ????????????????????????# #??????????? | | ????????????????????????# #??????????# | | ????????????????????????# #??????????# | | ????????????????????????# != ############ | | ???????????????????????## ] != / p | | ???????????????????????# Y != ##"######### | | ????????????????????????# s #?##???????# | | ????????????????????????# s #??????????# | | ????????????????????????# ps #??????????# | | ?????????#+####################s################## | | ??????? @ sp | | ??????? | | ??????? p k | | ??????? | | ???????? p | | ???????? | | ????????? R pk | | ?????????##### #################+########### | | ?????????????# ???????????# #???# | | ?????????????# ############ #???# | | ?????????????+ # # #???# | | ?????????????# # # #???? | | ?????????????# # #""""" #???? | | ???????? ??# # #""""" #???? | | ????????" ?# h# """""" #???? | | ??????""" # # """""" #???? | | ??????" # # """""" #???? | | ??????" + / """""" #???? | | ?????????????# / " #???? | | ?????????????# # " #???? | | ?????????????# # "#############???? | | ?????????????# # "#???????????????? | | ?????????????# # "#?????????####### | | ?????????????# # ##????????# = | | ?????????????# # #?????????# | +----------------------------------------------------+ Best States ------------- Heat Dissipation 52 Energy Generation 5 Energy Capacity 100 Matter Stores 300 Matter Capacity 300 Sight Range 20 Robot Scan Range 15 Terrain Scan Range 16 Terrain Scan Density 810 Corruption Block 20 Evasion (%) 50 Targeting Accuracy 18 Core Analysis 6 Armor Integrity Analysis 40 Offensive Hacking 10 Defensive Hacking 24 Item Schematics ----------------- None Robot Schematics ------------------ None Fabricated ------------ Nothing Repaired ---------- Nothing Studied --------- None Alien Tech Used ----------------- None Achievements -------------- Follow The Leader Challenges ------------ None Game ------ Seed GravitonSystemImpeller Manual? 0 Play Time 00:42:27 Cumulative 571.3 hours Start 2026.08.22 @ 21:36:43 End 2026.08.22 @ 22:16:24 Sessions 1 Manual Loads 0 Difficulty Rogue Special Mode None Game No. 321 Rogue 321 Adventurer 0 Explorer 0 Win Type - Total 37 Types 18/2/7/2/1/1/1/2/1/2 Lore% 97 Gallery% 92 Achievement% 88 Wizard Run 0 Options --------- Layout 1 ASCII 0 Keyboard 0 Movement Numpad Keybinds 0 Fullscreen 1 Font 24/Proggy Map View 50x35 Zoom Use 0% Tactical HUD 0 Map Filters NONE Filters NONE Steam 1 RUN: 1690334a-c07c-43df-879e-34a64987159e